bitfinex-derivatives/quotes_SOLF0:USTF0_20250909
["timestamp","ask_amount","ask_price","bid_price","bid_amount"]
[1757416784135,0.0289997,217.4,217.36,3.65718299]
[1757416784338,0.0289997,217.4,217.34,1.9371366]
[1757416784539,7.56,217.39,217.35,3.65751786]
[1757416784742,0.0289997,217.4,217.34,1.9371366]
[1757416784938,0.0289997,217.4,217.35,3.6575678]
[1757416785240,0.0289997,217.4,217.36,3.6575678]
[1757416785539,7.56,217.39,217.34,1.9371366]
[1757416785838,7.56,217.39,217.35,3.65745123]
[1757416786037,7.56,217.39,217.36,3.65745123]
[1757416786238,0.0289997,217.4,217.34,1.9371366]
[1757416786434,0.0289997,217.4,217.35,3.65749211]
[1757416786634,7.56,217.39,217.32,1.9371366]
[1757416786835,7.56,217.39,217.33,3.65764073]
[1757416787035,0.0289997,217.4,217.34,3.65764073]
[1757416787239,7.56,217.39,217.32,1.9371366]
[1757416787439,7.56,217.39,217.33,3.65717994]
[1757416787635,7.56,217.39,217.34,3.65717994]
[1757416787840,7.56,217.39,217.32,6.0779366]
[1757416788041,7.56,217.39,217.33,3.6571617]
[1757416788238,7.56,217.39,217.34,3.6571617]
[1757416788439,7.56,217.39,217.32,6.0779366]
[1757416788740,7.56,217.39,217.33,3.6568921]
[1757416788940,0.0289997,217.4,217.34,3.6568921]
[1757416789244,7.56,217.39,217.32,6.0779366]
[1757416789543,7.56,217.39,217.33,3.65675516]
[1757416789743,0.0289997,217.4,217.34,3.65675516]
[1757416790043,7.56,217.39,217.32,6.0779366]
[1757416790242,7.56,217.39,217.33,3.65675545]
[1757416790444,0.0289997,217.4,217.34,5.64389205]
[1757416790645,0.0289997,217.4,217.34,1.9871366]
[1757416790833,7.56,217.39,217.35,3.65689205]
[1757416791038,7.5889997,217.4,217.34,1.9871366]
[1757416791334,0.0289997,217.4,217.35,3.65689235]
[1757416791540,7.5889997,217.4,217.34,1.9871366]
[1757416791738,0.0289997,217.4,217.35,3.65736158]
[1757416791945,0.0289997,217.4,217.34,6.1275366]
[1757416792133,0.0289997,217.4,217.37,0.05]
[1757416792338,0.0289997,217.4,217.29,23.19622509]
[1757416792339,0.0289997,217.4,217.34,1.9371366]
[1757416792637,0.0289997,217.4,217.35,3.65769271]
[1757416792834,0.0289997,217.4,217.36,3.65769271]
[1757416793039,7.5889997,217.4,217.34,6.0775366]
[1757416793245,0.0289997,217.4,217.35,3.65769301]
[1757416793543,7.56,217.39,217.36,3.65769301]
[1757416793743,7.56,217.39,217.35,0.05]
[1757416793942,7.56,217.39,217.36,3.65766557]
[1757416794142,7.56,217.39,217.35,0.05]
[1757416794442,7.56,217.39,217.29,23.19622509]
[1757416794443,7.56,217.39,217.33,1.9371366]
[1757416794642,7.56,217.39,217.34,3.65793677]
[1757416794949,7.5889997,217.4,217.33,1.9371366]
[1757416795243,7.5889997,217.4,217.35,1.9371366]
[1757416795434,7.5889997,217.4,217.35,1.9871366]
[1757416795435,7.56,217.39,217.35,1.9871366]
[1757416795636,7.56,217.39,217.35,1.9371366]
[1757416796244,7.56,217.39,217.35,1.9871366]
[1757416797039,7.56,217.39,217.36,0.05]
[1757416797249,0.0289997,217.4,217.36,0.05]
[1757416797550,7.5889997,217.4,217.36,0.05]
[1757416797751,0.0289997,217.4,217.37,0.05]
[1757416798047,0.0289997,217.4,217.37,1.9871366]
[1757416798241,7.5889997,217.4,217.37,1.9871366]
[1757416798647,7.5889997,217.4,217.37,0.05]
[1757416800349,7.56,217.39,217.33,4.1906]
[1757416800641,0.0289997,217.4,217.34,3.65810694]
[1757416800849,7.56,217.39,217.33,1.9371366]
[1757416801445,0.0289997,217.4,217.34,3.65867297]
[1757416801646,7.56,217.39,217.33,1.9371366]
[1757416801847,7.56,217.39,217.34,3.65857349]
[1757416802149,7.56,217.39,217.33,1.9371366]
[1757416802349,0.0289997,217.4,217.34,3.65893572]
[1757416802544,7.56,217.39,217.3,0.05]
[1757416802744,7.56,217.39,217.33,1.9371366]
[1757416805951,7.56,217.39,217.3,0.05]
[1757416806150,7.56,217.39,217.32,1.9371366]
[1757416806449,7.56,217.39,217.33,3.65944783]
[1757416806652,7.56,217.39,217.32,1.9371366]
[1757416806846,7.56,217.39,217.33,3.65982886]
[1757416807046,7.56,217.39,217.32,1.9371366]
[1757416807345,7.56,217.39,217.33,3.65982886]
[1757416807548,7.56,217.39,217.32,1.9371366]
[1757416807850,7.56,217.39,217.29,27.33762509]
[1757416807851,1.9371366,217.33,217.29,23.19622509]
[1757416808050,7.56,217.32,217.29,7.63622509]
[1757416808247,9.4971366,217.3,217.29,7.63622509]
[1757416809048,7.56,217.3,217.29,7.63622509]
[1757416814554,9.4971366,217.3,217.29,7.63622509]
[1757416815457,7.56,217.3,217.29,7.63622509]
[1757416815658,9.3171366,217.32,217.29,7.63622509]
[1757416815959,1.9371366,217.32,217.29,7.63622509]
[1757416816157,0.03341757,217.33,217.29,7.63622509]
[1757416816356,7.41341757,217.33,217.29,14.67622509]
[1757416817154,0.03341757,217.33,217.3,7.04]
[1757416820967,0.03341757,217.33,217.29,7.63622509]
[1757416821163,0.03341757,217.33,217.3,7.04]
[1757416821361,0.03341757,217.33,217.29,7.63622509]
[1757416821759,0.03341757,217.33,217.3,7.04]
[1757416821963,0.03341757,217.33,217.29,7.63622509]
[1757416822263,0.03341757,217.33,217.3,7.04]
[1757416822764,0.03341757,217.33,217.29,7.63622509]
[1757416823063,0.03341757,217.33,217.3,7.04]
[1757416823259,0.03341757,217.33,217.29,7.63622509]
[1757416823458,0.03341757,217.33,217.31,7.04]
[1757416824164,0.03341757,217.33,217.3,4.1413]
[1757416824467,0.03341757,217.33,217.31,7.04]
[1757416824861,0.03341757,217.33,217.3,4.1413]
[1757416825257,0.03341757,217.33,217.31,7.04]
[1757416825459,0.03341757,217.33,217.3,4.1413]
[1757416825869,0.03341757,217.33,217.31,7.04]
[1757416826267,0.03341757,217.33,217.3,4.1413]
[1757416826666,0.03341757,217.33,217.31,7.04]
[1757416826865,0.03341757,217.33,217.3,4.1413]
[1757416827862,0.03341757,217.33,217.31,7.04]
[1757416828057,0.03341757,217.33,217.3,4.1413]
[1757416828264,0.03341757,217.33,217.31,7.04]
[1757416828463,0.03341757,217.33,217.3,4.1413]
[1757416828968,0.03341757,217.33,217.31,7.04]
[1757416829466,0.03341757,217.33,217.3,4.1413]
[1757416829969,0.03341757,217.33,217.31,7.04]
[1757416830471,7.38,217.32,217.29,14.67622509]
[1757416831168,0.03341757,217.33,217.29,14.67622509]
[1757416831471,7.41341757,217.33,217.29,14.67622509]
[1757416831769,7.38,217.32,217.29,7.63622509]
[1757416832268,7.84,217.32,217.29,7.63622509]
[1757416833865,7.38,217.32,217.29,7.63622509]
[1757416834065,0.03341757,217.33,217.29,7.63622509]
[1757416834464,7.38,217.32,217.29,7.63622509]
[1757416835065,3.06318466,217.33,217.29,7.63622509]
[1757416835361,0.46,217.32,217.29,7.63622509]
[1757416835870,7.38,217.31,217.29,7.63622509]
[1757416836265,0.03341757,217.33,217.29,7.63622509]
[1757416836466,7.38,217.32,217.29,7.63622509]
[1757416837164,0.03341757,217.33,217.29,7.63622509]
[1757416837671,7.38,217.32,217.29,7.63622509]
[1757416838069,0.03341757,217.33,217.29,7.63622509]
[1757416838369,7.38,217.32,217.29,7.63622509]
[1757416838573,0.03341757,217.33,217.29,7.63622509]
[1757416838969,7.38,217.32,217.29,7.63622509]
[1757416839269,0.03341757,217.33,217.29,7.63622509]
[1757416839469,7.38,217.32,217.29,7.63622509]
[1757416839675,0.03341757,217.33,217.29,7.63622509]
[1757416839973,7.38,217.32,217.29,7.63622509]
[1757416840376,0.03341757,217.33,217.29,7.63622509]
[1757416840772,7.38,217.32,217.29,7.63622509]
[1757416841876,0.03341757,217.33,217.29,7.63622509]
[1757416842078,7.38,217.32,217.29,7.63622509]
[1757416842669,0.03341757,217.33,217.29,7.63622509]
[1757416842875,7.38,217.32,217.29,7.63622509]
[1757416843479,0.03341757,217.33,217.3,7.32]
[1757416851183,0.03341757,217.33,217.29,7.63622509]
[1757416851483,0.03341757,217.33,217.3,7.32]
[1757416851684,0.03341757,217.33,217.29,7.63622509]
[1757416852282,0.03341757,217.33,217.3,7.32]
[1757416852784,0.03341757,217.33,217.29,7.63622509]
[1757416853177,0.03341757,217.33,217.3,7.32]
[1757416853382,0.03341757,217.33,217.29,7.63622509]
[1757416854484,0.03341757,217.33,217.3,7.32]
[1757416854783,0.03341757,217.33,217.29,7.63622509]
[1757416854982,0.03341757,217.33,217.3,7.32]
[1757416855184,0.03341757,217.33,217.29,7.63622509]
[1757416856275,0.03341757,217.33,217.3,7.32]
[1757416856574,0.03341757,217.33,217.29,7.63622509]
[1757416856779,0.03341757,217.33,217.3,7.32]
[1757416857282,0.03341757,217.33,217.29,7.63622509]
[1757416857483,0.03341757,217.33,217.3,7.32]
[1757416857888,0.03341757,217.33,217.29,7.63622509]
[1757416858187,0.03341757,217.33,217.3,7.32]
[1757416858386,0.03341757,217.33,217.29,7.63622509]
[1757416858587,0.03341757,217.33,217.3,7.32]
[1757416858885,0.03341757,217.33,217.29,7.63622509]
[1757416859288,0.03341757,217.33,217.3,7.32]
[1757416859483,0.03341757,217.33,217.29,7.63622509]
[1757416859884,0.03341757,217.33,217.3,7.32]
[1757416862686,5.0,217.41,217.33,7.32]
[1757416865289,7.12,217.4,217.3,7.32]
[1757416866181,0.02956803,217.37,217.3,7.32]
[1757416871892,0.02956803,217.37,217.3,11.4611]
[1757416872185,0.02956803,217.37,217.31,7.32]
[1757416874789,7.29956803,217.37,217.31,7.32]
[1757416876293,7.29956803,217.37,217.29,7.63622509]
[1757416877196,12.4187053,217.37,217.29,7.63622509]
[1757416877401,7.27,217.35,217.29,7.63622509]
[1757416877698,12.38913727,217.35,217.29,7.63622509]
[1757416882392,7.27,217.32,217.29,7.63622509]
[1757416883394,1.94003169,217.31,217.29,7.63622509]
[1757416883595,7.27,217.3,217.29,7.63622509]
[1757416884696,7.73,217.3,217.19,5.26]
[1757416884997,9.21003169,217.26,217.19,5.26]
[1757416885189,1.94003169,217.26,217.19,1.94003169]
[1757416885395,7.2997277,217.25,217.11,0.80128943]
[1757416885595,7.2997277,217.25,217.17,1.94003169]
[1757416885897,7.27,217.25,217.16,1.94003169]
[1757416886400,1.94003169,217.24,217.14,1.94003169]
[1757416886596,1.94003169,217.24,217.03,18.96008538]
[1757416886597,9.2391743,217.23,217.06,3.84864891]
[1757416886800,1.9691743,217.23,217.16,7.17]
[1757416887099,1.94003169,217.23,217.16,7.17]
[1757416887596,1.94003169,217.25,217.16,7.17]
[1757416889104,1.94003169,217.25,217.16,9.11003169]
[1757416889403,1.94003169,217.25,217.16,7.17]
[1757416889802,7.27,217.29,217.19,1.94003169]
[1757416889997,1.94003169,217.28,217.2,7.17]
[1757416893407,9.21003169,217.29,217.21,7.17]
[1757416893598,1.94003169,217.29,217.21,7.17]
[1757416894004,7.27,217.32,217.22,1.94003169]
[1757416894206,9.21003169,217.32,217.23,7.17]
[1757416894611,1.94003169,217.32,217.25,7.17]
[1757416895315,0.02935197,217.31,217.25,7.17]
[1757416896416,0.02935197,217.31,217.26,1.94003169]
[1757416897616,0.02935197,217.31,217.27,7.17]
[1757416897919,0.02935197,217.31,217.26,1.94003169]
[1757416898912,0.02935197,217.31,217.27,7.17]
[1757416899617,0.02935197,217.31,217.26,1.94003169]
[1757416899811,0.02935197,217.31,217.27,7.17]
[1757416900220,0.02935197,217.31,217.26,1.94003169]
[1757416900421,0.02935197,217.31,217.27,7.17]
[1757416900619,0.02935197,217.31,217.26,1.94003169]
[1757416900818,0.02935197,217.31,217.27,7.17]
[1757416901021,0.02935197,217.31,217.25,1.94003169]
[1757416901416,9.21003169,217.33,217.26,7.17]
[1757416902222,1.94003169,217.36,217.3,7.17]
[1757416902421,9.21003169,217.38,217.3,7.17]
[1757416902820,0.02968629,217.35,217.3,7.17]
[1757416903217,0.02968629,217.35,217.29,1.94003169]
[1757416903414,0.02968629,217.35,217.3,7.58]
[1757416905322,0.02968629,217.35,217.31,1.94003169]
[1757416905523,0.02968629,217.35,217.32,7.58]
[1757416905723,0.02968629,217.35,217.31,1.94003169]
[1757416905921,0.02968629,217.35,217.32,7.58]
[1757416906723,0.02968629,217.35,217.31,1.94003169]
[1757416907422,0.02968629,217.35,217.32,7.58]
[1757416907830,0.02968629,217.35,217.34,7.58]
[1757416908323,5.0,217.41,217.34,7.58]
[1757416908728,0.02930771,217.4,217.34,7.58]
[1757416910920,0.02930771,217.4,217.36,7.58]
[1757416911327,0.02930771,217.4,217.35,1.94003169]
[1757416911523,0.02930771,217.4,217.36,7.58]
[1757416911919,0.02930771,217.4,217.35,1.94003169]
[1757416912317,0.02930771,217.4,217.36,7.58]
[1757416912722,0.02930771,217.4,217.35,1.94003169]
[1757416912930,0.02930771,217.4,217.36,7.58]
[1757416913519,0.02930771,217.4,217.35,1.94003169]
[1757416913723,0.02930771,217.4,217.36,7.58]
[1757416914224,0.02930771,217.4,217.35,1.94003169]
[1757416914826,0.02930771,217.4,217.37,7.58]
[1757416915025,0.02930771,217.4,217.35,1.94003169]
[1757416915526,0.02930771,217.4,217.36,7.58]
[1757416915721,0.02930771,217.4,217.34,1.94003169]
[1757416916127,7.42930771,217.4,217.35,7.58]
[1757416916625,0.02930771,217.4,217.34,1.94003169]
[1757416916829,0.02930771,217.4,217.35,7.58]
[1757416917126,0.02930771,217.4,217.34,1.94003169]
[1757416917315,0.02930771,217.4,217.35,7.58]
[1757416918329,0.02930771,217.4,217.34,1.94003169]
[1757416918527,0.02930771,217.4,217.35,7.58]
[1757416918918,0.02930771,217.4,217.34,1.94003169]
[1757416919830,0.02930771,217.4,217.35,7.58]
[1757416920023,0.02930771,217.4,217.34,1.94003169]
[1757416920230,0.02930771,217.4,217.35,7.58]
[1757416920824,0.02930771,217.4,217.34,1.94003169]
[1757416921630,0.02930771,217.4,217.35,7.58]
[1757416922131,0.02930771,217.4,217.34,1.94003169]
[1757416922333,0.02930771,217.4,217.35,7.58]
[1757416922530,7.4,217.39,217.33,9.52003169]
[1757416922726,0.02930771,217.4,217.38,7.58]
[1757416922931,5.0,217.41,217.39,1.94003169]
[1757416923135,5.0,217.41,217.4,7.58]
[1757416926129,5.0,217.41,217.36,1.94003169]
[1757416926328,12.4,217.41,217.37,7.58]
[1757416926528,5.0,217.41,217.38,7.58]
[1757416926836,5.02981836,217.41,217.4,9.52003169]
[1757416927228,5.0,217.41,217.4,9.52003169]
[1757416929733,5.0,217.41,217.4,7.58]
[1757416930435,5.0,217.41,217.39,1.94003169]
[1757416930634,5.0,217.41,217.37,1.94003169]
[1757416930834,12.4,217.41,217.37,9.52003169]
[1757416931234,5.0,217.41,217.37,1.94003169]
[1757416932935,5.0,217.41,217.4,7.58]
[1757416937642,5.0,217.41,217.39,1.94003169]
[1757416938033,12.29,217.41,217.37,7.57]
[1757416938234,12.29,217.41,217.38,7.57]
[1757416939340,5.0,217.41,217.37,1.94003169]
[1757416939737,5.0,217.41,217.4,7.57]
[1757416943841,5.0,217.41,217.4,9.51003169]
[1757416944340,5.0,217.41,217.4,7.57]
[1757416946243,5.0,217.41,217.36,3.02651805]
[1757416946442,5.0,217.41,217.37,7.57]
[1757416946743,5.0,217.41,217.36,3.02651805]
[1757416947145,5.0,217.41,217.37,7.57]
[1757416947643,5.0,217.41,217.36,3.02651805]
[1757416948046,5.0,217.41,217.37,7.57]
[1757416948445,5.0,217.41,217.36,3.02651805]
[1757416948646,5.0,217.41,217.37,7.57]
[1757416948948,5.0,217.41,217.36,7.16661805]
[1757416949645,5.0,217.41,217.37,7.57]
[1757416949841,5.0,217.41,217.38,7.57]
[1757416950039,0.02902249,217.43,217.4,7.57]
[1757416950244,0.02902249,217.43,217.39,3.02651805]
[1757416950245,5.0,217.49,217.43,7.57]
[1757416950445,5.0,217.49,217.48,7.57]
[1757416951350,5.0,217.49,217.48,10.59651805]
[1757416952551,7.29,217.54,217.48,10.59651805]
[1757416952552,7.29,217.58,217.49,7.57]
[1757416953139,7.29,217.58,217.51,3.05988993]
[1757416953346,7.29,217.58,217.51,10.62988993]
[1757416953546,7.29,217.58,217.51,10.59651805]
[1757416953849,7.29,217.58,217.52,0.03282408]
[1757416962352,10.31651805,217.58,217.52,0.03282408]
[1757416964458,7.29,217.58,217.52,0.03282408]
[1757416967958,10.31651805,217.58,217.52,0.03282408]
[1757416971162,7.31,217.54,217.52,0.03282408]
[1757416971371,7.31,217.54,217.42,7.54]
[1757416971562,7.31,217.5,217.42,7.54]
[1757416972666,0.02987654,217.48,217.42,7.54]
[1757416981479,0.02987654,217.48,217.42,4.1389]
[1757416981680,0.02987654,217.48,217.43,7.54]
[1757416982679,0.02987654,217.48,217.43,11.6787]
[1757416982880,0.02987654,217.48,217.4,3.02651805]
[1757416983087,0.02987654,217.48,217.44,7.54]
[1757416983881,0.02987654,217.48,217.45,7.54]
[1757416984386,0.02987654,217.48,217.47,7.54]
[1757416991089,0.02987654,217.48,217.44,7.54]
[1757416991295,0.02987654,217.48,217.31,17.67783034]
[1757416991296,0.02987654,217.48,217.41,7.54]
[1757416991794,7.31,217.52,217.41,7.54]
[1757416991993,0.03271654,217.47,217.41,7.54]
[1757416994094,0.03271654,217.47,217.41,11.6791]
[1757416994395,0.03271654,217.47,217.44,7.18]
[1757416994693,7.31,217.52,217.44,7.18]
[1757416995293,0.03232488,217.5,217.45,7.18]
[1757416996187,0.03232488,217.5,217.46,4.1382]
[1757416996792,0.03232488,217.5,217.47,7.18]
[1757416997096,0.03232488,217.5,217.46,4.1382]
[1757416997391,0.03232488,217.5,217.47,7.18]
[1757416997594,0.03232488,217.5,217.46,4.1382]
[1757416997993,0.03232488,217.5,217.47,7.18]
[1757416998592,0.03232488,217.5,217.46,4.1382]
[1757416998989,0.03232488,217.5,217.47,4.138]
[1757416999495,0.03232488,217.5,217.48,7.18]
[1757416999696,0.03232488,217.5,217.47,4.138]
[1757417000396,0.03232488,217.5,217.48,7.18]
[1757417000596,0.03232488,217.5,217.47,4.138]
[1757417000998,0.03232488,217.5,217.49,7.18]
[1757417002194,0.03232488,217.5,217.49,10.20651805]
[1757417006504,0.03232488,217.5,217.49,9.11485506]
[1757417013008,7.62,217.57,217.5,4.1374]
[1757417013203,7.62,217.6,217.53,1.93485506]
[1757417014309,7.62,217.6,217.54,0.02927536]
[1757417017009,9.55485506,217.6,217.54,0.02927536]
[1757417018904,1.93485506,217.56,217.54,0.02927536]
[1757417019110,7.62,217.55,217.54,0.02927536]
[1757417024919,5.11913727,217.66,217.54,0.02927536]
[1757417025122,1.93485506,217.6,217.54,0.02927536]
[1757417025318,7.04,217.59,217.54,0.02927536]
[1757417025523,7.04,217.6,217.54,0.02927536]
[1757417027724,8.97485506,217.6,217.54,0.02927536]
[1757417031620,7.04,217.6,217.54,0.02927536]
[1757417031820,7.04,217.57,217.54,0.02927536]
[1757417032022,7.04,217.59,217.54,0.02927536]
[1757417032228,1.93485506,217.6,217.54,0.02927536]
[1757417033229,7.04,217.59,217.54,0.02927536]
[1757417033424,1.93485506,217.6,217.54,0.02927536]
[1757417034030,7.04,217.59,217.54,0.02927536]
[1757417034419,1.93485506,217.6,217.54,0.02927536]
[1757417035026,7.04,217.59,217.54,0.02927536]
[1757417035324,1.93485506,217.6,217.54,0.02927536]
[1757417036130,7.04,217.59,217.54,0.02927536]
[1757417036531,1.93485506,217.6,217.54,0.02927536]
[1757417036829,7.04,217.62,217.54,0.02927536]
[1757417037027,1.93485506,217.6,217.54,0.02927536]
[1757417037228,7.04,217.59,217.54,0.02927536]
[1757417037926,7.04,217.59,217.55,4.10287301]
[1757417038130,1.93485506,217.6,217.54,0.02927536]
[1757417038435,1.93485506,217.6,217.55,4.10363669]
[1757417038632,1.93485506,217.6,217.54,0.02927536]
[1757417038832,1.93485506,217.6,217.55,4.10363669]
[1757417039028,7.04,217.59,217.54,0.02927536]
[1757417039238,7.04,217.59,217.55,4.10363669]
[1757417039531,1.93485506,217.6,217.54,0.02927536]
[1757417039735,1.93485506,217.6,217.55,4.10450181]
[1757417039934,1.93485506,217.6,217.54,0.02927536]
[1757417040126,7.04,217.59,217.55,4.10450181]
[1757417040331,7.04,217.59,217.54,0.02927536]
[1757417040528,7.04,217.59,217.55,4.10535661]
[1757417040728,1.93485506,217.6,217.56,4.10535661]
[1757417040934,7.04,217.59,217.54,0.02927536]
[1757417041138,1.93485506,217.6,217.55,4.10524442]
[1757417043633,7.04,217.59,217.54,0.02927536]
[1757417043934,7.04,217.59,217.55,11.65656102]
[1757417044125,1.93485506,217.6,217.56,4.10656102]
[1757417044330,7.04,217.59,217.55,7.55]
[1757417044527,1.93485506,217.6,217.56,4.10718425]
[1757417044730,1.93485506,217.6,217.55,7.55]
[1757417045030,1.93485506,217.6,217.56,4.10718425]
[1757417045226,1.93485506,217.6,217.55,7.55]
[1757417045425,1.93485506,217.6,217.56,4.10789506]
[1757417045626,1.93485506,217.6,217.55,7.55]
[1757417045825,7.04,217.59,217.56,4.10789506]
[1757417046026,7.04,217.59,217.55,7.55]
[1757417046230,7.04,217.59,217.56,4.10789506]
[1757417046428,7.04,217.59,217.57,4.10789506]
[1757417046727,7.04,217.59,217.55,7.55]
[1757417047236,7.04,217.59,217.54,0.02927536]
[1757417047433,7.04,217.59,217.56,7.55]
[1757417048037,1.93485506,217.6,217.56,7.55]
[1757417048337,7.04,217.59,217.54,0.02927536]
[1757417048538,1.93485506,217.6,217.55,4.10969156]
[1757417048733,7.04,217.59,217.54,0.02927536]
[1757417048927,7.04,217.59,217.55,4.10969156]
[1757417049128,1.93485506,217.6,217.54,0.02927536]
[1757417049338,1.93485506,217.6,217.55,4.10963409]
[1757417049535,7.04,217.59,217.55,7.55]
[1757417050037,7.04,217.62,217.56,4.10935912]
[1757417050237,1.93485506,217.63,217.57,4.10935912]
[1757417050438,7.04,217.62,217.55,7.55]
[1757417050630,7.04,217.62,217.56,4.10906821]
[1757417050832,1.93485506,217.63,217.57,4.10906821]
[1757417051034,7.04,217.62,217.58,4.10906821]
[1757417051236,7.04,217.62,217.55,7.55]
[1757417051542,7.04,217.62,217.56,4.10840841]
[1757417051744,1.93485506,217.63,217.57,4.10840841]
[1757417052042,7.04,217.62,217.55,7.55]
[1757417052243,7.04,217.62,217.56,4.10840794]
[1757417052438,7.04,217.62,217.57,4.10840794]
[1757417052639,7.04,217.62,217.56,7.55]
[1757417052840,1.93485506,217.63,217.57,4.10805659]
[1757417053040,7.04,217.62,217.55,11.6865]
[1757417053241,7.04,217.62,217.56,4.10805656]
[1757417053436,7.03,217.62,217.57,11.71805656]
[1757417053750,1.93485506,217.63,217.57,7.61]
[1757417053937,7.03,217.62,217.57,7.61]
[1757417054134,7.03,217.62,217.55,4.1365]
[1757417054339,7.03,217.62,217.56,4.10763442]
[1757417054540,7.03,217.62,217.57,4.10763442]
[1757417054740,7.03,217.62,217.55,4.1365]
[1757417055038,7.03,217.62,217.56,4.10741844]
[1757417055236,1.93485506,217.63,217.57,4.10741844]
[1757417055436,7.03,217.62,217.56,7.61]
[1757417055635,1.93485506,217.63,217.57,4.10712492]
[1757417055938,7.03,217.62,217.56,7.61]
[1757417056135,7.03,217.65,217.57,4.10712492]
[1757417056340,1.93485506,217.64,217.58,11.71712492]
[1757417056539,1.93485506,217.64,217.58,7.61]
[1757417056744,1.93485506,217.64,217.59,4.13808938]
[1757417056947,112.22580583,217.67,217.6,11.71667361]
[1757417057142,112.22580583,217.67,217.61,4.10630008]
[1757417057342,112.22580583,217.67,217.6,7.61]
[1757417057546,112.22580583,217.67,217.61,4.10526591]
[1757417057749,112.22580583,217.67,217.6,7.61]
[1757417057941,112.22580583,217.67,217.61,4.10526524]
[1757417058136,112.22580583,217.67,217.6,7.61]
[1757417058343,112.22580583,217.67,217.61,4.1051337]
[1757417058543,112.22580583,217.67,217.6,7.61]
[1757417058745,112.22580583,217.67,217.61,4.10435008]
[1757417059046,112.22580583,217.67,217.6,7.61]
[1757417059246,112.22580583,217.67,217.61,4.10433163]
[1757417059446,110.29095077,217.67,217.6,7.61]
[1757417059748,110.29095077,217.67,217.61,4.10339337]
[1757417060048,110.29095077,217.67,217.6,7.61]
[1757417060246,7.03,217.66,217.62,7.61]
[1757417060546,103.26095077,217.67,217.62,7.61]
[1757417060845,7.03,217.66,217.62,7.61]
[1757417061045,7.03,217.66,217.6,7.61]
[1757417061246,7.03,217.67,217.64,7.61]
[1757417061442,7.03,217.67,217.65,4.10060597]
[1757417061648,7.03,217.72,217.66,4.10060597]
[1757417061837,1.93485506,217.73,217.63,11.745]
[1757417062040,7.03,217.72,217.64,6.03535206]
[1757417062345,8.96485506,217.73,217.67,0.03132115]
[1757417062741,7.03,217.73,217.66,9.54485506]
[1757417063050,7.03,217.69,217.68,0.033376]
[1757417063250,8.96485506,217.69,217.68,0.033376]
[1757417063549,1.93485506,217.69,217.58,13.68085506]
[1757417063752,8.96485506,217.67,217.66,0.03387734]
[1757417063945,8.96485506,217.67,217.58,13.68085506]
[1757417064146,8.96485506,217.67,217.59,4.0972583]
[1757417064350,1.93485506,217.67,217.64,0.03335272]
[1757417064648,8.96485506,217.65,217.64,0.03335272]
[1757417065946,7.03,217.65,217.64,0.03335272]
[1757417066147,8.96485506,217.65,217.64,0.03335272]
[1757417067558,7.03,217.65,217.64,0.03335272]
[1757417068159,7.03,217.67,217.64,0.03335272]
[1757417068457,7.03,217.7,217.64,0.03335272]
[1757417068858,7.03,217.7,217.6,7.61]
[1757417069159,7.03,217.7,217.65,0.02994914]
[1757417070850,7.03,217.73,217.65,7.63994914]
[1757417071254,7.03,217.73,217.65,7.61]
[1757417071457,7.03,217.73,217.67,0.02985469]
[1757417075865,7.03,217.71,217.67,0.02985469]
[1757417076259,112.87881395,217.74,217.59,11.7457]
[1757417076567,7.03,217.71,217.67,0.03026033]
[1757417081576,7.03,217.68,217.67,0.03026033]
[1757417083981,7.49,217.68,217.67,0.03026033]
[1757417094877,7.03,217.68,217.67,0.03026033]
[1757417100281,7.27,217.71,217.67,0.03026033]
[1757417100974,3.02124931,217.72,217.67,0.03026033]
[1757417101379,7.27,217.71,217.67,0.03026033]
[1757417102079,7.27,217.71,217.67,7.77026033]
[1757417102280,3.02124931,217.72,217.67,7.77026033]
[1757417102483,7.27,217.71,217.67,7.77026033]